[Event "*** Titled Tuesday Blitz"]
[Site "Chess.com"]
[Date "2020.12.29"]
[Round "1"]
[White "esapunov"]
[Black "eightbyeightchess"]
[Result "1-0"]
[WhiteElo "2721"]
[BlackElo "2385"]
[TimeControl "180+1"]
[EndTime "10:06:04 PST"]
[Termination "esapunov won by resignation"]

1. c4 {[%clk 0:03:00.9]} 1... e5 {[%clk 0:02:57.9]} 2. Nf3 {[%clk 0:03:00.6]}
2... Nc6 {[%clk 0:02:57.3]} 3. Nc3 {[%clk 0:03:00.3]} 3... Nf6 {[%clk
0:02:55.3]} 4. e3 {[%clk 0:02:59.7]} 4... g6 {[%clk 0:02:45.7]} 5. a3 {[%clk
0:02:58.8]} 5... a5 {[%clk 0:02:44.5]} 6. Qc2 {[%clk 0:02:58.6]} 6... Bg7 {[%clk
0:02:44.4]} 7. Be2 {[%clk 0:02:58.4]} 7... O-O {[%clk 0:02:44.3]} 8. O-O {[%clk
0:02:58.4]} 8... d6 {[%clk 0:02:44.4]} 9. d3 {[%clk 0:02:57.4]} 9... Ne8 {[%clk
0:02:28.9]} 10. Rb1 {[%clk 0:02:57]} 10... f5 {[%clk 0:02:26.1]} 11. b4 {[%clk
0:02:57.5]} 11... axb4 {[%clk 0:02:27]} 12. axb4 {[%clk 0:02:57.3]} 12... f4
{[%clk 0:02:16.7]} 13. b5 {[%clk 0:02:55.6]} 13... Ne7 {[%clk 0:02:15]} 14. e4
{[%clk 0:02:52.7]} 14... Kh8 {[%clk 0:02:04.2]} 15. h3 {[%clk 0:02:51.9]} 15...
Ng8 {[%clk 0:02:04]} 16. Bb2 {[%clk 0:02:51.8]} 16... g5 {[%clk 0:02:04]} 17.
Nh2 {[%clk 0:02:45.6]} 17... Nef6 {[%clk 0:01:47.8]} 18. Ra1 {[%clk 0:02:45.4]}
18... Rxa1 {[%clk 0:01:30.4]} 19. Rxa1 {[%clk 0:02:44.6]} 19... Be6 {[%clk
0:01:25.3]} 20. Qd1 {[%clk 0:02:40.7]} 20... Ne7 {[%clk 0:01:19.4]} 21. Nd5
{[%clk 0:02:32.9]} 21... Ng6 {[%clk 0:01:13.6]} 22. Ra7 {[%clk 0:02:30.6]} 22...
Qc8 {[%clk 0:01:02.6]} 23. Ng4 {[%clk 0:02:24.2]} 23... Nxg4 {[%clk 0:00:29.8]}
24. Bxg4 {[%clk 0:02:23.6]} 24... c6 {[%clk 0:00:20]} 25. bxc6 {[%clk 0:02:08]}
25... bxc6 {[%clk 0:00:20.5]} 26. Rc7 {[%clk 0:02:07.6]} 26... Bxg4 {[%clk
0:00:19.5]} 27. hxg4 {[%clk 0:01:49.2]} 27... Qb8 {[%clk 0:00:16.8]} 28. Rxc6
{[%clk 0:01:40.1]} 28... Qxb2 {[%clk 0:00:16.5]} 29. Rxd6 {[%clk 0:01:40.1]}
29... f3 {[%clk 0:00:12.4]} 30. g3 {[%clk 0:01:37.3]} 30... Ra8 {[%clk 0:00:11]}
31. Rb6 {[%clk 0:01:34.3]} 31... Ra1 {[%clk 0:00:08.9]} 32. Rxb2 {[%clk
0:01:29]} 32... Rxd1+ {[%clk 0:00:08.9]} 33. Kh2 {[%clk 0:01:29.3]} 33... Rxd3
{[%clk 0:00:09.3]} 34. c5 {[%clk 0:01:26.8]} 34... Ra3 {[%clk 0:00:07]} 35. c6
{[%clk 0:01:26.4]} 35... Ra8 {[%clk 0:00:05]} 36. c7 {[%clk 0:01:26]} 36... Rc8
{[%clk 0:00:04.1]} 37. Rb8 {[%clk 0:01:25.7]} 37... Ne7 {[%clk 0:00:04.4]} 38.
Nxe7 {[%clk 0:01:25.9]} 1-0

[Event "*** Titled Tuesday Blitz"]
[Site "Chess.com"]
[Date "2020.12.29"]
[Round "1"]
[White "Ural_bogatyr"]
[Black "joppie2"]
[Result "0-1"]
[WhiteElo "2448"]
[BlackElo "2880"]
[TimeControl "180+1"]
[EndTime "10:06:05 PST"]
[Termination "joppie2 won by resignation"]

1. e4 {[%clk 0:03:00.9]} 1... c5 {[%clk 0:02:54.7]} 2. Nf3 {[%clk 0:03:00.9]}
2... e6 {[%clk 0:02:55.3]} 3. c3 {[%clk 0:03:00.7]} 3... d5 {[%clk 0:02:53.2]}
4. exd5 {[%clk 0:03:00.7]} 4... Qxd5 {[%clk 0:02:54.1]} 5. d4 {[%clk 0:03:00.6]}
5... Nf6 {[%clk 0:02:54.2]} 6. Be2 {[%clk 0:02:59.8]} 6... Nc6 {[%clk
0:02:53.2]} 7. O-O {[%clk 0:02:59.5]} 7... Be7 {[%clk 0:02:51.9]} 8. Be3 {[%clk
0:02:59.1]} 8... cxd4 {[%clk 0:02:44.7]} 9. cxd4 {[%clk 0:03:00]} 9... O-O
{[%clk 0:02:45.4]} 10. Nc3 {[%clk 0:02:59.7]} 10... Qd6 {[%clk 0:02:45]} 11. a3
{[%clk 0:02:59.8]} 11... b6 {[%clk 0:02:45.1]} 12. b4 {[%clk 0:02:58.2]} 12...
Bb7 {[%clk 0:02:44.2]} 13. Qb3 {[%clk 0:02:58.7]} 13... Rfd8 {[%clk 0:02:41.7]}
14. Rfd1 {[%clk 0:02:59.1]} 14... Bf8 {[%clk 0:02:37.3]} 15. h3 {[%clk
0:02:52.2]} 15... Ne7 {[%clk 0:02:35.8]} 16. Ne5 {[%clk 0:02:48.3]} 16... Nf5
{[%clk 0:02:33.7]} 17. Rac1 {[%clk 0:02:33.5]} 17... Rac8 {[%clk 0:02:22.1]} 18.
Bf3 {[%clk 0:02:04.9]} 18... Bxf3 {[%clk 0:02:13.3]} 19. Nxf3 {[%clk 0:02:02]}
19... Nxe3 {[%clk 0:02:03.3]} 20. fxe3 {[%clk 0:02:01.8]} 20... g6 {[%clk
0:02:04]} 21. e4 {[%clk 0:01:52.7]} 21... Qf4 {[%clk 0:01:57.2]} 22. Re1 {[%clk
0:01:41.5]} 22... Bh6 {[%clk 0:01:36.2]} 23. e5 {[%clk 0:01:19.7]} 23... Nh5
{[%clk 0:01:26.3]} 24. Rcd1 {[%clk 0:01:17.8]} 24... Ng7 {[%clk 0:01:13.1]} 25.
d5 {[%clk 0:01:09.3]} 25... Qc4 {[%clk 0:01:07.5]} 26. Qxc4 {[%clk 0:01:09.3]}
26... Rxc4 {[%clk 0:01:08]} 27. Ne4 {[%clk 0:01:10.2]} 27... exd5 {[%clk
0:01:03.2]} 28. Nf6+ {[%clk 0:01:08.3]} 28... Kf8 {[%clk 0:01:03.3]} 29. Nxd5
{[%clk 0:01:08.4]} 29... Ne6 {[%clk 0:01:00]} 30. a4 {[%clk 0:01:02.5]} 30...
Kg7 {[%clk 0:00:51.2]} 31. Re2 {[%clk 0:00:52.9]} 31... Nf4 {[%clk 0:00:43.6]}
32. Ra2 {[%clk 0:00:52.5]} 32... Rxd5 {[%clk 0:00:41.8]} 33. Rxd5 {[%clk
0:00:50.5]} 33... Nxd5 {[%clk 0:00:41.9]} 34. a5 {[%clk 0:00:51.4]} 34... Nxb4
{[%clk 0:00:42]} 35. axb6 {[%clk 0:00:50.1]} 35... Nxa2 {[%clk 0:00:41.7]} 0-1

[Event "*** Titled Tuesday Blitz"]
[Site "Chess.com"]
[Date "2020.12.29"]
[Round "1"]
[White "chegueps"]
[Black "crescentmoon2411"]
[Result "0-1"]
[WhiteElo "2449"]
[BlackElo "2882"]
[TimeControl "180+1"]
[EndTime "10:06:07 PST"]
[Termination "crescentmoon2411 won by checkmate"]

1. d4 {[%clk 0:02:57.3]} 1... Nf6 {[%clk 0:02:59.3]} 2. Nf3 {[%clk 0:02:54.7]}
2... c5 {[%clk 0:02:58.2]} 3. e3 {[%clk 0:02:54.4]} 3... g6 {[%clk 0:02:57.5]}
4. Bd3 {[%clk 0:02:53.4]} 4... Bg7 {[%clk 0:02:57.8]} 5. O-O {[%clk 0:02:52.1]}
5... O-O {[%clk 0:02:57.5]} 6. Nbd2 {[%clk 0:02:49.1]} 6... b6 {[%clk
0:02:55.5]} 7. c3 {[%clk 0:02:48.9]} 7... Bb7 {[%clk 0:02:55.2]} 8. e4 {[%clk
0:02:47.8]} 8... d6 {[%clk 0:02:52.2]} 9. Qe2 {[%clk 0:02:46.9]} 9... Nc6 {[%clk
0:02:46.9]} 10. a3 {[%clk 0:02:46.8]} 10... cxd4 {[%clk 0:02:41.2]} 11. cxd4
{[%clk 0:02:47.7]} 11... Rc8 {[%clk 0:02:41.1]} 12. b4 {[%clk 0:02:42.5]} 12...
Nh5 {[%clk 0:02:32.4]} 13. Qe3 {[%clk 0:02:23]} 13... e5 {[%clk 0:02:30.7]} 14.
d5 {[%clk 0:02:22.2]} 14... Nd4 {[%clk 0:02:30.9]} 15. Nxd4 {[%clk 0:02:22]}
15... exd4 {[%clk 0:02:31.8]} 16. Qf3 {[%clk 0:02:16.2]} 16... Qf6 {[%clk
0:02:14.7]} 17. Qxf6 {[%clk 0:02:02.2]} 17... Bxf6 {[%clk 0:02:15.3]} 18. Rd1
{[%clk 0:01:55.2]} 18... Nf4 {[%clk 0:02:09.7]} 19. Bf1 {[%clk 0:01:55.1]} 19...
d3 {[%clk 0:02:09.3]} 20. Rb1 {[%clk 0:01:54.2]} 20... Rc2 {[%clk 0:02:02]} 21.
g3 {[%clk 0:01:38.8]} 21... Ne2+ {[%clk 0:02:00.7]} 22. Bxe2 {[%clk 0:01:38.2]}
22... dxe2 {[%clk 0:02:01.6]} 23. Re1 {[%clk 0:01:39]} 23... Rfc8 {[%clk
0:02:01.5]} 24. Kg2 {[%clk 0:01:24.3]} 24... h5 {[%clk 0:01:25.7]} 25. b5 {[%clk
0:01:18.8]} 25... a6 {[%clk 0:01:22.2]} 26. a4 {[%clk 0:01:16.3]} 26... axb5
{[%clk 0:01:19.9]} 27. axb5 {[%clk 0:01:17.2]} 27... g5 {[%clk 0:01:14.5]} 28.
Nf3 {[%clk 0:01:11.2]} 28... g4 {[%clk 0:01:13.8]} 29. Nd2 {[%clk 0:01:09.4]}
29... R8c5 {[%clk 0:01:10]} 30. h3 {[%clk 0:01:07.1]} 30... Bc8 {[%clk
0:01:08.6]} 31. hxg4 {[%clk 0:01:07.1]} 31... hxg4 {[%clk 0:01:08.9]} 32. f3
{[%clk 0:00:56.5]} 32... Bd7 {[%clk 0:01:05.9]} 33. Kf2 {[%clk 0:00:55.6]} 33...
Bxb5 {[%clk 0:01:04.7]} 34. Nb3 {[%clk 0:00:53.4]} 34... R5c3 {[%clk 0:01:03.8]}
35. Be3 {[%clk 0:00:52.1]} 35... gxf3 {[%clk 0:01:01.8]} 36. Nd2 {[%clk
0:00:51.3]} 36... Rxe3 {[%clk 0:00:45.2]} 37. Kxe3 {[%clk 0:00:45.2]} 37... Rc3+
{[%clk 0:00:45.4]} 38. Kf2 {[%clk 0:00:43.3]} 38... Bd4# {[%clk 0:00:45.1]} 0-1

[Event "*** Titled Tuesday Blitz"]
[Site "Chess.com"]
[Date "2020.12.29"]
[Round "1"]
[White "GregShahade"]
[Black "CM_rui"]
[Result "1-0"]
[WhiteElo "2682"]
[BlackElo "2354"]
[TimeControl "180+1"]
[EndTime "10:06:07 PST"]
[Termination "GregShahade won by resignation"]

1. e4 {[%clk 0:02:56.9]} 1... e5 {[%clk 0:02:58.3]} 2. Nf3 {[%clk 0:02:56.7]}
2... Nc6 {[%clk 0:02:58.4]} 3. Bb5 {[%clk 0:02:56.2]} 3... a6 {[%clk 0:02:58.6]}
4. Ba4 {[%clk 0:02:56.2]} 4... Nf6 {[%clk 0:02:58.8]} 5. O-O {[%clk 0:02:56.4]}
5... Be7 {[%clk 0:02:58]} 6. Re1 {[%clk 0:02:56.2]} 6... b5 {[%clk 0:02:57.1]}
7. Bb3 {[%clk 0:02:56.5]} 7... O-O {[%clk 0:02:57.7]} 8. a4 {[%clk 0:02:56.5]}
8... b4 {[%clk 0:02:57.9]} 9. d4 {[%clk 0:02:55.1]} 9... exd4 {[%clk 0:02:57.8]}
10. Nxd4 {[%clk 0:02:55.8]} 10... Nxd4 {[%clk 0:02:54.8]} 11. Qxd4 {[%clk
0:02:54]} 11... d6 {[%clk 0:02:54.8]} 12. Bg5 {[%clk 0:02:19.1]} 12... a5 {[%clk
0:02:48.5]} 13. Nd2 {[%clk 0:02:18.7]} 13... Bb7 {[%clk 0:02:41.4]} 14. Rad1
{[%clk 0:02:17.8]} 14... Nd7 {[%clk 0:02:38.8]} 15. Bxe7 {[%clk 0:02:14]} 15...
Qxe7 {[%clk 0:02:39.7]} 16. Bd5 {[%clk 0:01:49.3]} 16... Bxd5 {[%clk 0:02:17.8]}
17. exd5 {[%clk 0:01:35.4]} 17... Qf6 {[%clk 0:02:17.9]} 18. Nb3 {[%clk
0:01:35.6]} 18... Ne5 {[%clk 0:02:06.1]} 19. f4 {[%clk 0:01:26.5]} 19... Nd7
{[%clk 0:02:04.3]} 20. Qxf6 {[%clk 0:01:26.4]} 20... Nxf6 {[%clk 0:02:05.2]} 21.
Re7 {[%clk 0:01:26.4]} 21... Rfe8 {[%clk 0:01:54.3]} 22. Rxc7 {[%clk 0:01:23]}
22... Re2 {[%clk 0:01:53.9]} 23. Nd4 {[%clk 0:01:20.4]} 23... Nxd5 {[%clk
0:01:36.8]} 24. Nxe2 {[%clk 0:01:06.8]} 24... Nxc7 {[%clk 0:01:36.8]} 25. Rxd6
{[%clk 0:01:07.1]} 25... Ne6 {[%clk 0:01:34.6]} 26. f5 {[%clk 0:00:58.5]} 26...
Nc5 {[%clk 0:01:31.3]} 27. b3 {[%clk 0:00:59]} 27... h6 {[%clk 0:01:28.2]} 28.
Rc6 {[%clk 0:00:57.5]} 28... Ne4 {[%clk 0:01:28.2]} 29. Rc4 {[%clk 0:00:52.3]}
29... Nd6 {[%clk 0:01:26.1]} 30. Rc5 {[%clk 0:00:52.7]} 30... Ne4 {[%clk
0:01:24.1]} 31. Re5 {[%clk 0:00:52.3]} 31... Nd6 {[%clk 0:01:22.6]} 32. Nd4
{[%clk 0:00:52.5]} 32... Kf8 {[%clk 0:01:08.2]} 33. Kf2 {[%clk 0:00:50.3]} 33...
g6 {[%clk 0:00:45.6]} 34. fxg6 {[%clk 0:00:48.3]} 34... fxg6 {[%clk 0:00:46.5]}
35. Re6 {[%clk 0:00:45.1]} 35... Nf5 {[%clk 0:00:44.8]} 36. Nxf5 {[%clk
0:00:42.5]} 36... gxf5 {[%clk 0:00:45.7]} 37. Rxh6 {[%clk 0:00:38.2]} 37... Rc8
{[%clk 0:00:45]} 38. Rh8+ {[%clk 0:00:38.2]} 1-0

[Event "*** Titled Tuesday Blitz"]
[Site "Chess.com"]
[Date "2020.12.29"]
[Round "1"]
[White "Maksimus1998"]
[Black "Aslanov_Umid"]
[Result "1-0"]
[WhiteElo "2552"]
[BlackElo "2243"]
[TimeControl "180+1"]
[EndTime "10:06:08 PST"]
[Termination "Maksimus1998 won on time"]

1. e4 {[%clk 0:03:00.1]} 1... c5 {[%clk 0:02:59.1]} 2. Nf3 {[%clk 0:02:59.5]}
2... d6 {[%clk 0:02:59.5]} 3. d4 {[%clk 0:02:54.3]} 3... cxd4 {[%clk 0:03:00.4]}
4. Nxd4 {[%clk 0:02:54.4]} 4... Nf6 {[%clk 0:03:01]} 5. Nc3 {[%clk 0:02:53]}
5... a6 {[%clk 0:03:01.5]} 6. g3 {[%clk 0:02:49.4]} 6... e6 {[%clk 0:03:00.6]}
7. Bg2 {[%clk 0:02:48.9]} 7... Be7 {[%clk 0:03:00.9]} 8. O-O {[%clk 0:02:47.3]}
8... O-O {[%clk 0:03:01.2]} 9. Be3 {[%clk 0:02:47.5]} 9... Qc7 {[%clk
0:02:57.4]} 10. a4 {[%clk 0:02:47]} 10... Nc6 {[%clk 0:02:57.5]} 11. h3 {[%clk
0:02:32.4]} 11... Nxd4 {[%clk 0:02:54.6]} 12. Qxd4 {[%clk 0:02:28.9]} 12... Bd7
{[%clk 0:02:51.3]} 13. a5 {[%clk 0:02:27.6]} 13... Bc6 {[%clk 0:02:50.1]} 14.
Rfd1 {[%clk 0:02:23.8]} 14... Rac8 {[%clk 0:02:43.7]} 15. Qd3 {[%clk 0:02:15.6]}
15... Nd7 {[%clk 0:01:51.5]} 16. Qe2 {[%clk 0:02:12.4]} 16... Bf6 {[%clk
0:01:45.6]} 17. Bd4 {[%clk 0:02:10.3]} 17... Bxd4 {[%clk 0:01:42.2]} 18. Rxd4
{[%clk 0:02:10.8]} 18... Rfd8 {[%clk 0:01:40.6]} 19. b4 {[%clk 0:02:01.7]} 19...
Nf6 {[%clk 0:01:26.9]} 20. Rad1 {[%clk 0:01:58.5]} 20... e5 {[%clk 0:01:07.9]}
21. R4d2 {[%clk 0:01:54.4]} 21... Be8 {[%clk 0:00:54.6]} 22. Nd5 {[%clk
0:01:43.5]} 22... Nxd5 {[%clk 0:00:43.3]} 23. Rxd5 {[%clk 0:01:35.6]} 23... Bb5
{[%clk 0:00:37.3]} 24. Qd2 {[%clk 0:01:27.5]} 24... Qxc2 {[%clk 0:00:35.1]} 25.
Qxc2 {[%clk 0:01:24.8]} 25... Rxc2 {[%clk 0:00:34.3]} 26. Rxe5 {[%clk
0:01:23.4]} 26... Kf8 {[%clk 0:00:13.2]} 27. Red5 {[%clk 0:01:22.5]} 27... Ke7
{[%clk 0:00:10.9]} 28. e5 {[%clk 0:01:19.4]} 1-0

[Event "*** Titled Tuesday Blitz"]
[Site "Chess.com"]
[Date "2020.12.29"]
[Round "1"]
[White "arna"]
[Black "juancruzarias"]
[Result "0-1"]
[WhiteElo "2127"]
[BlackElo "2512"]
[TimeControl "180+1"]
[EndTime "10:06:09 PST"]
[Termination "juancruzarias won on time"]

1. e4 {[%clk 0:02:58]} 1... c5 {[%clk 0:03:00.1]} 2. Nf3 {[%clk 0:02:57.2]} 2...
g6 {[%clk 0:03:00]} 3. d4 {[%clk 0:02:55.6]} 3... cxd4 {[%clk 0:03:00]} 4. Qxd4
{[%clk 0:02:56.5]} 4... Nf6 {[%clk 0:02:59.3]} 5. Nc3 {[%clk 0:02:57]} 5... Nc6
{[%clk 0:02:59.2]} 6. Qa4 {[%clk 0:02:57.6]} 6... d6 {[%clk 0:02:55.6]} 7. e5
{[%clk 0:02:57.7]} 7... Ng4 {[%clk 0:02:55.2]} 8. exd6 {[%clk 0:02:47.9]} 8...
Bg7 {[%clk 0:02:45.3]} 9. h3 {[%clk 0:02:04.6]} 9... Ne5 {[%clk 0:02:42.3]} 10.
Nxe5 {[%clk 0:02:03.4]} 10... Bxe5 {[%clk 0:02:43.2]} 11. dxe7 {[%clk 0:02:00]}
11... Qxe7 {[%clk 0:02:41.2]} 12. Be2 {[%clk 0:01:38.2]} 12... O-O {[%clk
0:02:31.7]} 13. Be3 {[%clk 0:01:32.3]} 13... Bd7 {[%clk 0:02:24.3]} 14. Nd5
{[%clk 0:01:07.4]} 14... Qd6 {[%clk 0:02:03.3]} 15. Rd1 {[%clk 0:00:38.6]} 15...
Nd4 {[%clk 0:01:52.8]} 16. Qc4 {[%clk 0:00:11.2]} 16... Bb5 {[%clk 0:01:43.5]}
17. Qxd4 {[%clk 0:00:08.3]} 17... Bxd4 {[%clk 0:01:40.6]} 18. Rxd4 {[%clk
0:00:09.2]} 18... Bxe2 {[%clk 0:01:39.4]} 19. Kxe2 {[%clk 0:00:10.1]} 19... Rfe8
{[%clk 0:01:37.8]} 20. Rhd1 {[%clk 0:00:09]} 20... Rac8 {[%clk 0:01:33.9]} 21.
c3 {[%clk 0:00:08.4]} 21... Rxe3+ {[%clk 0:01:27.6]} 22. Kxe3 {[%clk 0:00:06.9]}
22... Re8+ {[%clk 0:01:25.1]} 23. Kf3 {[%clk 0:00:07]} 23... Kg7 {[%clk
0:01:24]} 24. R1d2 {[%clk 0:00:05.1]} 24... Qc6 {[%clk 0:01:23.9]} 25. Kg3
{[%clk 0:00:04]} 25... Qd6+ {[%clk 0:01:23]} 26. Kf3 {[%clk 0:00:03.1]} 26... h5
{[%clk 0:01:21.8]} 27. g3 {[%clk 0:00:02.9]} 27... Qa6 {[%clk 0:01:19.4]} 28. a4
{[%clk 0:00:01.5]} 28... Qf1 {[%clk 0:01:17]} 29. h4 {[%clk 0:00:01.6]} 29...
Qh1+ {[%clk 0:01:16.8]} 30. Kf4 {[%clk 0:00:01.8]} 30... Qb1 {[%clk 0:01:13.7]}
0-1

[Event "*** Titled Tuesday Blitz"]
[Site "Chess.com"]
[Date "2020.12.29"]
[Round "1"]
[White "LimeInTheCoconut"]
[Black "olksuna"]
[Result "0-1"]
[WhiteElo "2338"]
[BlackElo "2647"]
[TimeControl "180+1"]
[EndTime "10:06:10 PST"]
[Termination "olksuna won by resignation"]

1. e4 {[%clk 0:03:00.1]} 1... d6 {[%clk 0:02:59.1]} 2. d4 {[%clk 0:02:56.3]}
2... Nf6 {[%clk 0:02:59.6]} 3. Nc3 {[%clk 0:02:55.4]} 3... c6 {[%clk 0:03:00.1]}
4. g3 {[%clk 0:02:54.4]} 4... b5 {[%clk 0:02:54.4]} 5. Bg2 {[%clk 0:02:51.7]}
5... b4 {[%clk 0:02:53.9]} 6. Nce2 {[%clk 0:02:47.2]} 6... Nbd7 {[%clk
0:02:53.9]} 7. Nh3 {[%clk 0:02:42.9]} 7... e5 {[%clk 0:02:50]} 8. O-O {[%clk
0:02:41.5]} 8... Be7 {[%clk 0:02:50.3]} 9. f4 {[%clk 0:02:39.2]} 9... O-O {[%clk
0:02:46]} 10. a3 {[%clk 0:02:30]} 10... bxa3 {[%clk 0:02:43.1]} 11. Rxa3 {[%clk
0:02:24.8]} 11... a5 {[%clk 0:02:35.4]} 12. Raf3 {[%clk 0:02:08.7]} 12... Ba6
{[%clk 0:02:32.3]} 13. c3 {[%clk 0:01:59.2]} 13... Nxe4 {[%clk 0:02:29.7]} 14.
fxe5 {[%clk 0:01:41.9]} 14... dxe5 {[%clk 0:02:27.2]} 15. Rxf7 {[%clk
0:01:42.3]} 15... Rxf7 {[%clk 0:02:15.1]} 16. Rxf7 {[%clk 0:01:15.8]} 16... Kxf7
{[%clk 0:02:12.4]} 17. Bxe4 {[%clk 0:01:15.5]} 17... h6 {[%clk 0:02:12.9]} 18.
Bxc6 {[%clk 0:01:12.5]} 18... Rc8 {[%clk 0:02:02.1]} 19. Bd5+ {[%clk 0:00:28.9]}
19... Kf8 {[%clk 0:01:59.3]} 20. dxe5 {[%clk 0:00:25]} 20... Nxe5 {[%clk
0:01:54.7]} 21. Nef4 {[%clk 0:00:23.9]} 21... Qb6+ {[%clk 0:01:50.6]} 22. Kh1
{[%clk 0:00:21.2]} 22... Rd8 {[%clk 0:01:35.7]} 23. Qe1 {[%clk 0:00:07.5]} 23...
Bf6 {[%clk 0:01:04.8]} 24. Ne6+ {[%clk 0:00:06.6]} 24... Qxe6 {[%clk 0:01:03.1]}
25. Bxe6 {[%clk 0:00:07.5]} 25... Bb7+ {[%clk 0:01:03.5]} 26. Kg1 {[%clk
0:00:07.3]} 26... Nf3+ {[%clk 0:01:03.8]} 27. Kf2 {[%clk 0:00:07.8]} 27... Nxe1
{[%clk 0:01:04.2]} 28. Kxe1 {[%clk 0:00:07.5]} 28... Re8 {[%clk 0:01:04.8]} 29.
Nf4 {[%clk 0:00:07]} 29... g5 {[%clk 0:01:05]} 30. Ng6+ {[%clk 0:00:06.2]} 30...
Kg7 {[%clk 0:01:03.9]} 0-1

[Event "*** Titled Tuesday Blitz"]
[Site "Chess.com"]
[Date "2020.12.29"]
[Round "1"]
[White "BogdanDeac"]
[Black "MasterKroket"]
[Result "1-0"]
[WhiteElo "3004"]
[BlackElo "2474"]
[TimeControl "180+1"]
[EndTime "10:06:15 PST"]
[Termination "BogdanDeac won by checkmate"]

1. Nf3 {[%clk 0:02:58.6]} 1... Nf6 {[%clk 0:02:59.7]} 2. c4 {[%clk 0:02:57.3]}
2... e6 {[%clk 0:02:59.7]} 3. Nc3 {[%clk 0:02:50]} 3... d5 {[%clk 0:02:59.1]} 4.
d4 {[%clk 0:02:48.7]} 4... c6 {[%clk 0:02:57.6]} 5. Bg5 {[%clk 0:02:47.6]} 5...
Nbd7 {[%clk 0:02:57.3]} 6. e3 {[%clk 0:02:29.5]} 6... Qa5 {[%clk 0:02:56.9]} 7.
Nd2 {[%clk 0:02:27.9]} 7... Bb4 {[%clk 0:02:55.7]} 8. Qc2 {[%clk 0:02:27.3]}
8... dxc4 {[%clk 0:02:53.4]} 9. Bxf6 {[%clk 0:02:25.1]} 9... Nxf6 {[%clk
0:02:54.3]} 10. Nxc4 {[%clk 0:02:25.5]} 10... Qd8 {[%clk 0:02:53.8]} 11. a3
{[%clk 0:02:16.9]} 11... Be7 {[%clk 0:02:50.8]} 12. Rd1 {[%clk 0:01:51.9]} 12...
b6 {[%clk 0:02:41.3]} 13. g3 {[%clk 0:01:38.8]} 13... Bb7 {[%clk 0:02:41]} 14.
Bg2 {[%clk 0:01:39]} 14... Rc8 {[%clk 0:02:27.3]} 15. Qa4 {[%clk 0:01:23]} 15...
b5 {[%clk 0:02:00.2]} 16. Qxa7 {[%clk 0:01:16.4]} 16... Rb8 {[%clk 0:01:48.4]}
17. Na5 {[%clk 0:01:02.6]} 17... Ba8 {[%clk 0:01:44.9]} 18. Nxc6 {[%clk
0:00:55.7]} 18... Bxc6 {[%clk 0:01:44.1]} 19. Bxc6+ {[%clk 0:00:55.2]} 19... Kf8
{[%clk 0:01:44.7]} 20. d5 {[%clk 0:00:45.5]} 20... Qc8 {[%clk 0:01:29.2]} 21.
O-O {[%clk 0:00:36.1]} 21... Bd8 {[%clk 0:01:18.4]} 22. dxe6 {[%clk 0:00:31.7]}
22... fxe6 {[%clk 0:01:16.6]} 23. Bxb5 {[%clk 0:00:24.2]} 23... Bb6 {[%clk
0:01:15.2]} 24. Qa4 {[%clk 0:00:24.3]} 24... Qb7 {[%clk 0:01:03.7]} 25. Rd6
{[%clk 0:00:21.8]} 25... Ne4 {[%clk 0:01:00.2]} 26. Nxe4 {[%clk 0:00:18.6]}
26... Ra8 {[%clk 0:01:00.6]} 27. Qc4 {[%clk 0:00:17.7]} 27... h5 {[%clk
0:00:59.7]} 28. Qxe6 {[%clk 0:00:16.4]} 28... Ra7 {[%clk 0:00:54.1]} 29. Rd7
{[%clk 0:00:15.5]} 29... Qb8 {[%clk 0:00:47.1]} 30. Qf7# {[%clk 0:00:14.3]} 1-0

[Event "*** Titled Tuesday Blitz"]
[Site "Chess.com"]
[Date "2020.12.29"]
[Round "1"]
[White "CraiggoryC"]
[Black "Nadtkins"]
[Result "0-1"]
[WhiteElo "2210"]
[BlackElo "2538"]
[TimeControl "180+1"]
[EndTime "10:06:16 PST"]
[Termination "Nadtkins won by resignation"]

1. e4 {[%clk 0:03:00.9]} 1... d5 {[%clk 0:02:59.7]} 2. exd5 {[%clk 0:03:00.6]}
2... Nf6 {[%clk 0:03:00.2]} 3. Bb5+ {[%clk 0:02:59.9]} 3... Bd7 {[%clk
0:02:59.2]} 4. Be2 {[%clk 0:03:00.4]} 4... Nxd5 {[%clk 0:02:57.3]} 5. d4 {[%clk
0:03:00.7]} 5... Bf5 {[%clk 0:02:57.1]} 6. Nf3 {[%clk 0:02:57]} 6... e6 {[%clk
0:02:56.8]} 7. O-O {[%clk 0:02:56.9]} 7... Be7 {[%clk 0:02:57]} 8. c3 {[%clk
0:02:52.8]} 8... O-O {[%clk 0:02:55]} 9. Nbd2 {[%clk 0:02:52.8]} 9... c5 {[%clk
0:02:49.2]} 10. Re1 {[%clk 0:02:52.1]} 10... Nc6 {[%clk 0:02:48.1]} 11. dxc5
{[%clk 0:02:51.8]} 11... Bxc5 {[%clk 0:02:49]} 12. Nf1 {[%clk 0:02:41.6]} 12...
Qb6 {[%clk 0:02:43.1]} 13. Be3 {[%clk 0:02:32]} 13... Nxe3 {[%clk 0:02:41.3]}
14. fxe3 {[%clk 0:02:31.9]} 14... Qxb2 {[%clk 0:02:32.4]} 15. Nd4 {[%clk
0:02:27.5]} 15... Rfd8 {[%clk 0:02:23.8]} 16. Qb3 {[%clk 0:02:01.7]} 16... Qxb3
{[%clk 0:02:13.2]} 17. axb3 {[%clk 0:02:02.6]} 17... Be4 {[%clk 0:02:06.6]} 18.
Ng3 {[%clk 0:01:30.1]} 18... Bg6 {[%clk 0:02:02.4]} 19. Bf3 {[%clk 0:01:29.6]}
19... Rac8 {[%clk 0:01:52.2]} 20. Ne4 {[%clk 0:01:14]} 20... Bb6 {[%clk
0:01:46.3]} 21. Rad1 {[%clk 0:01:06.5]} 21... Ne5 {[%clk 0:01:41.3]} 22. Kf2
{[%clk 0:01:06.4]} 22... Nxf3 {[%clk 0:01:39.7]} 23. gxf3 {[%clk 0:01:06.2]}
23... Bxe4 {[%clk 0:01:33.6]} 24. fxe4 {[%clk 0:01:05.9]} 24... Rxc3 {[%clk
0:01:34.2]} 25. Nb5 {[%clk 0:01:04.6]} 25... Rcc8 {[%clk 0:01:29.7]} 26. Nd6
{[%clk 0:01:02.6]} 26... Rc7 {[%clk 0:01:26.5]} 27. Nc4 {[%clk 0:00:54.4]} 27...
Rcc8 {[%clk 0:01:15.1]} 28. Nd6 {[%clk 0:00:49.3]} 28... Rb8 {[%clk 0:01:13.5]}
29. e5 {[%clk 0:00:43.3]} 29... Bc7 {[%clk 0:01:08]} 30. Kf3 {[%clk 0:00:41.7]}
30... f6 {[%clk 0:01:05.2]} 31. Ke4 {[%clk 0:00:40.7]} 31... Bxd6 {[%clk
0:01:05.5]} 32. exd6 {[%clk 0:00:40.5]} 32... Rbc8 {[%clk 0:01:02.1]} 33. Rd4
{[%clk 0:00:27]} 33... Rd7 {[%clk 0:00:59]} 34. Ra1 {[%clk 0:00:22.4]} 34... a6
{[%clk 0:00:58.7]} 35. Rad1 {[%clk 0:00:19.3]} 35... Kf7 {[%clk 0:00:57.5]} 36.
Rb4 {[%clk 0:00:17.8]} 36... Rc6 {[%clk 0:00:56.3]} 0-1